bitfinex-derivatives/quotes_ETHF0:USTF0_20241207
["timestamp","ask_amount","ask_price","bid_price","bid_amount"]
[1733556024606,0.3923,3983.9,3983.3,0.3868]
[1733556025007,0.56775,3983.9,3983.3,0.3868]
[1733556025308,0.3923,3983.9,3983.3,0.3868]
[1733556025503,0.56775,3983.9,3983.3,0.56227]
[1733556025707,0.56775,3983.9,3983.3,0.3868]
[1733556026007,0.56775,3983.9,3983.3,0.56227]
[1733556026409,0.17545,3983.8,3983.3,0.3868]
[1733556026707,0.56775,3983.9,3983.3,0.56227]
[1733556027202,0.56775,3983.9,3983.4,0.4031]
[1733556027897,0.3923,3983.9,3983.5,0.17547]
[1733556028207,0.3923,3983.9,3983.4,0.4031]
[1733556028208,0.3923,3983.9,3983.6,0.17546]
[1733556028603,0.3923,3983.9,3983.5,0.17546]
[1733556029107,0.3923,3983.9,3983.6,0.17546]
[1733556029607,0.56775,3983.9,3983.4,1.30976205]
[1733556029797,0.56775,3983.9,3983.5,0.17546]
[1733556030710,0.56775,3983.9,3983.6,0.17546]
[1733556030911,0.3923,3983.9,3983.6,0.17546]
[1733556031307,0.56775,3983.9,3983.6,0.17546]
[1733556033511,0.3923,3983.9,3983.4,1.30976205]
[1733556034112,0.3923,3983.9,3983.8,0.17545]
[1733556034305,0.3923,3983.9,3983.4,1.30976205]
[1733556034610,0.56775,3983.9,3983.6,0.17546]
[1733556036315,1.29896205,3983.9,3983.4,0.4031]
[1733556036811,0.17545,3983.8,3983.5,0.17547]
[1733556037211,1.47441205,3983.9,3983.5,0.17547]
[1733556037408,0.23516238,3983.8,3983.5,0.17547]
[1733556037602,1.47441205,3983.9,3983.5,0.17547]
[1733556037805,1.47441205,3983.9,3983.4,0.4031]
[1733556037806,1.29896205,3983.9,3983.4,0.4031]
[1733556038012,0.23517321,3983.8,3983.3,3.5946]
[1733556038316,0.17546,3983.6,3983.3,4.2616]
[1733556038814,0.57935,3983.8,3983.4,1.08213205]
[1733556039507,0.3923,3983.9,3983.4,0.90666205]
[1733556039725,0.3923,3983.9,3983.7,0.17546]
[1733556040411,0.3923,3983.9,3983.6,0.17546]
[1733556041714,0.3923,3983.9,3983.4,1.28846205]
[1733556041918,0.56775,3983.9,3983.4,1.28846205]
[1733556042117,0.56775,3983.9,3983.6,0.17546]
[1733556043610,0.56775,3983.9,3983.5,0.17546]
[1733556043611,0.17545,3983.8,3983.5,0.17546]
[1733556044014,0.56775,3983.9,3983.5,0.17546]
[1733556044220,3.2078,3984.1,3983.4,1.28846205]
[1733556044420,0.17545,3984.0,3983.4,1.28846205]
[1733556044619,0.17545,3983.9,3983.6,0.17546]
[1733556044819,0.3788,3984.0,3983.6,0.17546]
[1733556045019,0.17545,3983.9,3983.6,0.17546]
[1733556046822,0.17545,3983.9,3983.4,4.49626205]
[1733556046823,0.17545,3983.9,3983.5,0.17547]
[1733556047019,0.17545,3983.9,3983.6,0.17546]
[1733556048532,0.17545,3983.9,3983.6,3.93990069]
[1733556048821,0.17545,3983.9,3983.6,0.17546]
[1733556049127,0.17545,3983.9,3983.6,4.11536069]
[1733556049531,0.17545,3983.9,3983.7,3.93990069]
[1733556050017,0.17545,3983.9,3983.8,0.4035]
[1733556050419,0.17545,3983.9,3983.8,4.34340069]
[1733556050614,0.17545,3983.9,3983.8,0.4035]
[1733556051228,1.28546205,3984.0,3983.8,0.4035]
[1733556051529,6.15650822,3984.3,3983.9,6.32599808]
[1733556051530,0.17544,3984.2,3983.9,6.32599808]
[1733556051729,0.2351424,3984.1,3984.0,3.9422357]
[1733556052617,0.2351424,3984.1,3984.0,5.91289808]
[1733556053737,0.17543,3984.2,3984.0,5.91289808]
[1733556053931,0.17543,3984.2,3984.1,5.91289808]
[1733556054132,3.76973,3984.3,3984.0,8.05349145]
[1733556054431,4.67639205,3984.3,3984.2,5.91715832]
[1733556054822,1.29316205,3984.3,3984.2,5.91650964]
[1733556055025,1.46859205,3984.3,3984.2,5.91650964]
[1733556055220,1.70372766,3984.3,3984.2,5.91650964]
[1733556056829,1.46859205,3984.3,3984.2,5.91650964]
[1733556057031,1.29316205,3984.3,3984.1,5.91650964]
[1733556057232,0.17543,3984.2,3984.1,5.91650964]
[1733556057425,0.17543,3984.2,3984.1,5.91579617]
[1733556059928,1.29316205,3984.3,3984.1,5.91579617]
[1733556060327,1.29316205,3984.3,3984.2,5.91579617]
[1733556063335,1.46859205,3984.3,3984.2,5.91579617]
[1733556066327,1.46859205,3984.3,3984.1,7.87805145]
[1733556066628,0.17543,3984.2,3984.1,7.87805145]
[1733556066835,0.17543,3984.2,3984.1,5.91522207]
[1733556067223,1.29316205,3984.3,3984.0,5.91522207]
[1733556067428,0.3865,3984.3,3984.1,5.91522207]
[1733556067628,0.17543,3984.2,3984.1,5.91522207]
[1733556068534,0.4116,3984.2,3984.1,5.91630037]
[1733556068733,0.58703,3984.2,3984.1,5.91630037]
[1733556068932,3.6006,3984.5,3983.9,0.4131]
[1733556068933,2.94870822,3984.5,3984.3,0.17543]
[1733556069140,4.11446205,3984.9,3984.4,8.26262745]
[1733556069141,2.94870822,3984.7,3984.4,8.26262745]
[1733556069439,0.90666205,3985.3,3984.6,10.77460311]
[1733556069629,1.08205205,3985.3,3985.2,3.94186611]
[1733556069834,0.17539,3985.2,3985.1,5.91279916]
[1733556070234,0.17539,3985.2,3985.0,5.91279916]
[1733556070634,0.17539,3985.2,3985.1,0.3792]
[1733556070836,0.17539,3985.2,3985.1,6.29199916]
[1733556071242,0.17539,3985.2,3985.1,0.3792]
[1733556071739,1.08205205,3985.3,3985.1,6.29199916]
[1733556071940,1.08205205,3985.3,3985.2,3.93994302]
[1733556072129,0.17539,3985.2,3985.1,4.31914302]
[1733556072331,1.08205205,3985.3,3985.1,4.31914302]
[1733556072731,0.17539,3985.2,3985.1,4.31914302]
[1733556074131,0.17539,3985.2,3985.1,0.3792]
[1733556077444,3.2078,3985.3,3985.1,4.98014302]
[1733556077739,0.17538,3985.6,3985.2,0.17539]
[1733556078039,1.08203205,3985.7,3985.3,4.11056792]
[1733556078243,3.2078,3985.8,3985.4,3.93518792]
[1733556078444,0.17537,3985.7,3985.3,4.11056792]
[1733556078636,0.17537,3985.8,3985.3,4.11056792]
[1733556078839,0.90666205,3985.9,3985.4,3.93518792]
[1733556079143,0.17537,3985.7,3985.3,3.93518792]
[1733556079933,0.17537,3985.7,3985.2,0.17539]
[1733556080152,4.11446205,3985.9,3985.2,0.17539]
[1733556080337,0.17537,3985.7,3985.2,0.17539]
[1733556080546,4.11446205,3985.9,3985.1,4.97538792]
[1733556080847,0.17538,3985.5,3985.1,1.0402]
[1733556081039,0.17538,3985.5,3985.1,1.21559]
[1733556082244,0.17538,3985.5,3985.2,0.3837]
[1733556082942,0.17538,3985.4,3985.2,0.3837]
[1733556083449,4.11446205,3985.9,3985.2,0.3837]
[1733556083649,0.17538,3985.4,3985.2,0.3837]
[1733556084338,4.11446205,3985.9,3985.2,0.3837]
[1733556084846,0.17539,3985.4,3985.2,0.3837]
[1733556086142,0.17538,3985.5,3985.2,0.3837]
[1733556087043,0.17538,3985.4,3985.2,0.3837]
[1733556087251,4.11446205,3985.9,3985.2,0.3837]
[1733556087252,3.38316,3985.9,3985.6,0.17537]
[1733556087540,3.38316,3985.9,3985.7,1.97116205]
[1733556087541,3.2078,3985.9,3985.7,1.97116205]
[1733556087747,3.2078,3985.9,3985.8,0.3846]
[1733556088046,3.2078,3986.6,3985.8,0.3846]
[1733556088245,3.2078,3987.4,3986.6,0.17533]
[1733556088445,0.17532,3986.9,3986.7,1.95226205]
[1733556088756,0.17532,3986.8,3986.7,1.0456]
[1733556089438,0.17532,3986.8,3986.7,0.3846]
[1733556089643,0.17532,3986.8,3986.7,1.0456]
[1733556090438,0.90666205,3986.9,3985.8,3.93115758]
[1733556090660,0.17535,3986.2,3986.1,0.3808]
[1733556091054,0.17536,3986.0,3985.9,1.0666]
[1733556091363,0.17536,3986.0,3985.9,0.661]
[1733556091653,0.17536,3985.9,3985.8,0.7661]
[1733556091946,0.4071,3986.1,3985.5,3.6134]
[1733556092152,0.4071,3986.1,3985.5,1.0656]
[1733556092153,0.17537,3985.6,3985.5,1.0656]
[1733556092340,0.4071,3986.1,3985.5,1.0656]
[1733556092341,0.17537,3985.7,3985.5,1.0656]
[1733556092648,0.17537,3985.6,3985.5,1.0656]
[1733556092853,0.58247,3985.6,3985.5,1.0656]
[1733556093951,0.17538,3985.4,3985.3,0.66]
[1733556094544,0.17538,3985.4,3985.1,0.66]
[1733556094751,0.17539,3985.2,3985.1,1.0556]
[1733556095244,0.396,3985.5,3984.0,0.43861]
[1733556095245,3.2078,3985.3,3984.7,0.661]
[1733556095551,0.17541,3984.8,3984.7,0.661]
[1733556096146,0.3967,3984.8,3984.5,0.3956]
[1733556096445,0.17542,3984.6,3984.5,0.661]
[1733556097250,0.399,3984.7,3984.2,0.3956]
[1733556097446,0.399,3984.7,3984.0,3.2078]
[1733556097447,0.17543,3984.4,3984.3,0.661]
[1733556099055,0.399,3984.7,3984.3,0.661]
[1733556099357,0.17543,3984.4,3984.3,0.661]
[1733556099557,0.17543,3984.5,3984.3,0.661]
[1733556099750,0.399,3984.7,3984.3,0.661]
[1733556099950,0.17543,3984.4,3984.3,0.661]
[1733556104155,0.399,3984.7,3984.0,3.6223]
[1733556104462,0.17543,3984.2,3984.1,0.671]
[1733556107062,0.17542,3984.6,3984.2,0.17543]
[1733556107257,0.17542,3984.5,3984.2,0.17543]
[1733556107860,0.17543,3984.4,3984.1,0.84644]
[1733556108060,0.17543,3984.3,3984.1,0.671]
[1733556108564,0.17543,3984.3,3984.1,4.59832094]
[1733556109164,0.17543,3984.3,3984.1,0.671]
[1733556109365,0.17543,3984.3,3984.1,0.84644]
[1733556109664,0.17543,3984.2,3984.1,0.671]
[1733556110163,0.17541,3984.7,3984.5,0.17542]
[1733556110461,3.2078,3985.0,3984.6,4.69962967]
[1733556110658,0.17541,3984.9,3984.8,0.17541]
[1733556110860,0.1754,3985.0,3984.8,3.38321]
[1733556111055,0.1754,3985.0,3984.9,3.92880709]
[1733556111259,0.1754,3985.0,3984.9,3.92902838]
[1733556112567,0.1754,3985.0,3984.9,4.10474904]
[1733556112763,0.822,3985.5,3984.8,11.06442626]
[1733556112958,0.17539,3985.3,3985.2,0.17539]
[1733556113161,0.17538,3985.5,3985.2,7.80802169]
[1733556113362,0.17537,3985.6,3985.4,0.17538]
[1733556113661,0.17537,3985.6,3985.5,0.3966]
[1733556117959,0.17539,3985.4,3985.2,7.80800995]
[1733556118160,0.17538,3985.4,3985.2,7.80800995]
[1733556118767,0.17539,3985.3,3985.2,3.92920995]
[1733556119071,0.17539,3985.3,3985.2,0.671]
[1733556120370,0.1754,3985.0,3984.9,3.92920995]
[1733556120669,0.1754,3985.0,3984.9,0.671]
[1733556123069,0.17539,3985.2,3984.9,0.671]
[1733556123274,0.3984,3985.6,3984.9,0.671]
[1733556123975,0.1754,3985.0,3984.9,0.671]
[1733556124769,3.2078,3985.3,3984.4,7.13700995]
[1733556124967,3.2078,3985.3,3984.4,3.2078]
[1733556124968,0.17542,3984.5,3984.4,3.2078]
[1733556125369,0.17542,3984.5,3984.4,0.671]
[1733556125871,3.2078,3984.7,3984.1,0.3742]
[1733556126075,0.17543,3984.2,3984.1,0.3742]
[1733556126277,0.17543,3984.2,3984.1,1.0452]
[1733556128566,0.17543,3984.3,3984.1,1.0452]
[1733556128766,3.2078,3984.7,3984.1,1.0452]
[1733556129471,0.17543,3984.3,3984.1,4.97440995]
[1733556129672,0.17543,3984.2,3984.1,4.97440995]
[1733556132279,0.17543,3984.2,3984.1,1.4422]
[1733556132579,0.17543,3984.2,3984.1,1.068]
[1733556133576,3.2078,3984.7,3984.1,1.068]
[1733556133774,0.17543,3984.4,3984.1,1.24344]
[1733556133971,0.17542,3984.5,3984.2,3.38323]
[1733556134177,0.17542,3984.5,3984.2,7.31243995]
[1733556134479,0.3745,3984.8,3984.3,3.92920995]
[1733556134681,0.3745,3984.8,3984.4,0.3874]
[1733556134981,0.17542,3984.5,3984.4,0.3874]
[1733556136073,0.17543,3984.3,3984.2,7.13700995]
[1733556136277,0.17543,3984.3,3984.2,3.2078]
[1733556136472,0.17543,3984.3,3984.2,7.13700995]
[1733556137478,0.17543,3984.3,3984.2,7.14241241]
[1733556137773,0.81303,3984.8,3984.2,3.2078]
[1733556137774,0.17543,3984.4,3984.2,3.2078]
[1733556137980,0.17543,3984.4,3984.3,3.93459373]
[1733556139377,0.3745,3984.8,3984.3,3.93459373]
[1733556139676,0.17542,3984.5,3984.3,5.89369451]
[1733556139881,0.3745,3984.8,3984.3,5.89369451]
[1733556140083,0.3745,3984.8,3984.6,3.93558202]
[1733556140288,0.17541,3984.7,3984.6,3.93558202]
[1733556140478,0.54991,3984.8,3984.7,0.4067]
[1733556142572,0.17541,3984.7,3984.5,3.93614408]
[1733556142883,0.17542,3984.6,3984.5,3.93612552]
[1733556144578,0.17541,3984.7,3984.5,3.93619746]
[1733556144783,0.17542,3984.6,3984.5,3.93619746]
[1733556145681,0.3745,3984.8,3984.5,3.936345]
[1733556145886,0.17542,3984.6,3984.5,3.936345]
[1733556146581,0.3745,3984.8,3984.4,5.89369451]
[1733556146785,0.17542,3984.5,3984.4,5.89369451]
[1733556148079,0.17542,3984.5,3984.4,6.55869451]
[1733556148480,0.17542,3984.5,3984.4,0.665]
[1733556150083,0.17543,3984.4,3984.3,3.93674208]
[1733556150285,0.17543,3984.3,3984.2,3.93674208]
[1733556150488,0.59003,3984.3,3984.2,3.93674208]
[1733556150686,0.17543,3984.2,3984.1,3.93674208]
[1733556150888,0.57563,3984.2,3984.1,3.93674208]
[1733556151086,0.57563,3984.2,3984.0,6.55869451]
[1733556151087,0.17544,3984.1,3984.0,6.55869451]
[1733556151284,0.17544,3984.1,3984.0,5.89369451]
[1733556154495,0.17544,3984.0,3983.9,5.89369451]
[1733556159496,0.4146,3984.3,3983.9,3.5914]
[1733556159689,0.17544,3984.1,3984.0,0.90622666]
[1733556161498,0.4146,3984.3,3983.9,11.44604188]
[1733556161798,0.17544,3984.0,3983.9,11.44604188]
[1733556162296,0.17544,3984.0,3983.9,12.28955807]
[1733556162498,0.17544,3984.0,3983.9,12.46500807]
[1733556162696,0.17544,3984.0,3983.9,12.28955807]
[1733556163996,0.17544,3984.0,3983.9,12.95055807]
[1733556164691,1.73348666,3984.6,3983.9,12.95055807]
[1733556164996,1.72554666,3984.9,3984.4,5.91259143]
[1733556165198,1.72554666,3984.9,3984.6,5.91350474]
[1733556165199,3.38321,3984.7,3984.6,5.91350474]
[1733556167392,4.28943666,3984.7,3984.6,5.91350474]
[1733556167694,4.11402666,3984.7,3984.5,6.57450474]
[1733556167893,0.7892,3984.6,3984.5,3.94340244]
[1733556168091,0.7892,3984.6,3984.4,5.91350474]
[1733556168598,0.17542,3984.5,3984.4,5.91350474]
[1733556168804,0.7892,3984.6,3984.3,5.91350474]
[1733556169101,0.17543,3984.4,3984.3,5.91350474]
[1733556171302,1.08165666,3984.4,3984.3,5.91350474]
[1733556174014,0.17543,3984.3,3984.2,5.91350474]
[1733556174208,3.6233,3984.3,3984.2,3.94511697]
[1733556174408,6.80385469,3984.3,3984.1,3.94511697]
[1733556174611,3.18055898,3984.2,3984.0,3.94511697]
[1733556174808,1.08166666,3984.1,3984.0,3.94511697]
[1733556175109,1.47136666,3984.1,3984.0,3.94511697]
[1733556175517,1.29592666,3984.1,3983.9,3.94511697]
[1733556175707,0.58514,3984.0,3983.9,3.94511697]
[1733556177809,0.17545,3983.8,3983.7,3.94511697]
[1733556178007,0.17546,3983.7,3983.6,5.91350474]
[1733556178213,0.17546,3983.6,3983.5,5.91350474]
[1733556178511,0.56946,3983.6,3983.5,5.91350474]
[1733556179515,0.394,3983.6,3983.4,9.12130474]
[1733556179715,0.17547,3983.5,3983.4,9.12130474]
[1733556181817,0.17547,3983.5,3983.4,9.52120474]
[1733556182413,0.17547,3983.5,3983.4,9.90870474]
[1733556183123,1.08169666,3983.5,3983.4,7.93575916]
[1733556183418,1.08169666,3983.5,3983.4,3.9952]
[1733556184319,1.08169666,3983.5,3983.4,3.2078]
[1733556184617,0.17548,3983.2,3983.1,3.94055916]
[1733556184820,0.90622666,3983.2,3983.0,4.98905916]
[1733556185010,0.58348,3983.1,3983.0,4.98905916]
[1733556185212,0.58348,3983.1,3983.0,4.32805916]
[1733556185414,0.17549,3982.9,3982.8,3.94055916]
[1733556185615,1.08171666,3982.9,3982.8,3.94055916]
[1733556185816,0.90622666,3982.9,3982.7,4.60155916]
[1733556186121,0.1755,3982.8,3982.7,4.60155916]
[1733556186514,0.1755,3982.8,3982.7,0.661]
[1733556186913,0.1755,3982.8,3982.7,4.60155916]
[1733556187919,0.1755,3982.8,3982.7,0.661]
[1733556191528,0.1755,3982.7,3982.4,0.4004]
[1733556191728,0.17551,3982.5,3982.4,0.4004]
[1733556197335,0.43866,3983.7,3982.4,0.4004]
[1733556197630,4.11402666,3983.2,3982.5,0.3987]
[1733556197831,0.1755,3982.8,3982.5,0.3987]
[1733556198332,4.11402666,3983.2,3982.5,0.3987]
[1733556198821,0.1755,3982.7,3982.5,0.3987]
[1733556199029,0.1755,3982.8,3982.5,0.3987]
[1733556199427,0.1755,3982.7,3982.5,0.3987]
[1733556199624,0.17548,3983.1,3982.5,0.3987]
[1733556200027,0.1755,3982.7,3982.5,0.3987]
[1733556200227,4.11402666,3983.2,3982.5,0.3987]
[1733556200635,3.2078,3983.2,3982.5,4.33925916]
[1733556200936,0.1755,3982.7,3982.5,0.3987]
[1733556201133,4.11402666,3983.2,3982.5,0.3987]
[1733556201339,0.1755,3982.6,3982.5,0.3987]
[1733556202035,0.1755,3982.7,3982.5,0.3987]
[1733556202333,0.1755,3982.6,3982.5,4.33925916]
[1733556202627,0.1755,3982.6,3982.5,0.3987]
[1733556203430,0.1755,3982.7,3982.5,0.3987]
[1733556203634,0.1755,3982.6,3982.5,0.3987]
[1733556203832,0.1755,3982.7,3982.5,4.33925916]
[1733556204029,0.1755,3982.7,3982.5,0.3987]
[1733556204925,0.90622666,3982.9,3982.5,0.3987]
[1733556205128,0.1755,3982.6,3982.5,0.3987]
[1733556205732,0.1755,3982.8,3982.5,0.3987]
[1733556205930,3.2078,3983.2,3982.5,0.3987]
[1733556206139,3.2078,3983.2,3982.4,4.34095916]
[1733556206140,0.1755,3982.6,3982.4,0.4004]
[1733556206339,0.4137,3982.7,3982.4,0.4004]
[1733556206340,0.17551,3982.5,3982.4,0.4004]
[1733556206936,0.4137,3982.7,3982.4,0.4004]
[1733556207137,0.17551,3982.6,3982.4,0.4004]
[1733556207539,0.4137,3982.7,3982.4,0.4004]
[1733556207734,0.5892,3982.7,3982.4,0.4004]
[1733556208442,0.17551,3982.6,3982.4,0.4004]
[1733556210039,0.17551,3982.5,3982.4,0.4004]
[1733556210737,0.17551,3982.6,3982.4,5.00195916]
[1733556211335,0.17551,3982.5,3982.4,5.00195916]
[1733556211745,0.4137,3982.7,3982.4,5.17746916]
[1733556211943,0.17551,3982.6,3982.4,5.00195916]
[1733556212548,0.17551,3982.5,3982.4,5.00195916]
[1733556213649,0.17551,3982.5,3982.4,5.45111025]
[1733556214149,0.17551,3982.6,3982.4,5.45111025]
[1733556214455,0.17551,3982.6,3982.5,3.93437662]
[1733556214645,0.5892,3982.7,3982.5,3.93437662]
[1733556214845,0.5892,3982.7,3982.6,3.93519815]
[1733556216954,0.9862,3982.7,3982.6,3.93519815]
[1733556217344,0.8107,3982.7,3982.4,0.661]
[1733556217648,1.08173666,3982.5,3982.4,0.661]
[1733556218549,1.08173666,3982.5,3982.4,4.59619815]
[1733556218755,1.08173666,3982.5,3982.4,0.661]
[1733556219145,0.17551,3982.4,3982.3,3.93519815]
[1733556219354,0.17552,3982.3,3982.2,7.14299815]
[1733556219652,0.17552,3982.3,3982.2,7.60377338]
[1733556220646,0.17552,3982.3,3982.2,10.30947812]
[1733556223354,0.17552,3982.3,3982.2,4.39597338]
[1733556223551,0.17552,3982.3,3982.2,10.30947812]
[1733556224053,0.90622666,3982.5,3982.1,6.57450474]
[1733556224054,0.17552,3982.2,3982.1,6.57450474]
[1733556224250,0.96192,3982.2,3982.1,10.97295247]
[1733556224444,0.96192,3982.2,3982.1,5.05944773]
[1733556224658,0.96192,3982.2,3982.1,10.97295247]
[1733556228653,0.96192,3982.2,3982.1,10.9744456]
[1733556229761,0.96192,3982.2,3982.1,10.3134456]
[1733556229954,0.17552,3982.2,3982.1,10.7246456]
[1733556232259,0.5906,3982.9,3982.4,0.17551]
[1733556232464,0.1755,3982.8,3982.7,9.1226413]
[1733556232760,0.1755,3982.8,3982.7,7.60774086]
[1733556233257,0.1755,3982.8,3982.7,8.00811245]
[1733556234966,1.32132666,3982.9,3982.7,8.00811245]
[1733556234967,0.4151,3982.9,3982.7,8.00811245]
[1733556235163,0.17549,3982.9,3982.8,10.31397936]
[1733556235963,0.17549,3982.9,3982.8,10.313906]
[1733556236658,1.08171666,3982.9,3982.8,10.313906]
[1733556237056,1.08171666,3982.9,3982.8,3.94315051]
[1733556237057,0.90622666,3982.9,3982.8,3.94315051]
[1733556237361,4.11402666,3982.9,3982.6,5.91449355]
[1733556237561,0.1755,3982.8,3982.7,3.94321322]
[1733556237760,0.1755,3982.6,3982.5,0.4146]
[1733556237965,0.90622666,3982.6,3982.5,3.94349714]
[1733556238159,0.90622666,3982.6,3982.4,3.94349714]
[1733556238360,0.57541,3982.5,3982.4,3.94349714]
[1733556238964,0.17551,3982.4,3982.3,0.661]
[1733556239466,0.17551,3982.4,3982.3,3.94358737]
[1733556240363,4.0079,3982.5,3982.2,4.34708737]
[1733556240561,0.90622666,3982.3,3982.1,3.94358737]
[1733556240762,0.17552,3982.2,3982.1,3.94358737]
[1733556240965,0.55032,3982.2,3982.1,3.94358737]
[1733556241563,0.17553,3982.1,3982.0,4.60458737]
[1733556241766,0.17553,3982.1,3982.0,3.94358737]
[1733556242159,0.17553,3982.1,3982.0,4.39951322]
[1733556242963,0.17553,3982.1,3982.0,10.31400677]
[1733556243362,0.17553,3982.1,3982.0,4.39951322]
[1733556243669,0.17553,3982.1,3982.0,10.31400677]
[1733556244173,0.3748,3982.2,3982.0,3.94258788]
[1733556244471,0.17553,3982.0,3981.9,4.60358788]
[1733556244770,0.17553,3982.0,3981.9,5.05945121]
[1733556244969,0.17553,3982.0,3981.9,4.60325822]
[1733556245271,0.17553,3982.0,3981.9,4.39845069]
[1733556245460,0.90622666,3982.0,3981.8,9.91679355]
[1733556245663,0.17554,3981.9,3981.8,6.30729355]
[1733556245859,0.17554,3981.9,3981.8,3.94223389]
[1733556246066,0.3984,3981.9,3981.6,3.94223389]
[1733556246272,1.08176666,3981.7,3981.6,3.94223389]
[1733556247079,0.90622666,3981.7,3981.5,4.34753389]
[1733556247266,0.17555,3981.6,3981.5,4.34753389]
[1733556247669,0.55935,3981.6,3981.5,4.34753389]
[1733556248472,0.55935,3981.6,3981.5,3.94223389]
[1733556248667,0.55935,3981.6,3981.5,4.33593389]
[1733556249379,1.29002666,3981.6,3981.3,3.94223389]
[1733556249579,3.6074,3981.5,3980.9,3.94223389]
[1733556249776,0.90622666,3981.0,3980.8,3.94223389]
[1733556249982,0.55458,3980.9,3980.8,3.94223389]
[1733556250483,0.379,3980.9,3980.7,3.94223389]
[1733556250682,0.17558,3980.8,3980.7,3.94223389]
[1733556251384,0.379,3980.9,3980.6,3.94223389]
[1733556251886,0.55458,3980.9,3980.7,3.94223389]
[1733556252590,0.379,3980.9,3980.7,3.94223389]
[1733556252786,0.17558,3980.8,3980.7,3.94223389]
[1733556252986,0.17558,3980.8,3980.6,3.94223389]
[1733556253186,0.379,3980.9,3980.6,3.94223389]
[1733556253389,0.17559,3980.8,3980.6,3.94223389]
[1733556253784,0.379,3980.9,3980.5,4.34033389]
[1733556253988,0.17559,3980.8,3980.5,4.34033389]
[1733556254189,0.379,3980.9,3980.5,4.34033389]
[1733556254389,0.17559,3980.8,3980.5,4.34033389]
[1733556254585,0.379,3980.9,3980.5,4.34033389]
[1733556254790,0.17559,3980.7,3980.5,4.34033389]
[1733556255097,0.17559,3980.6,3980.5,4.34033389]
[1733556255387,0.379,3980.9,3980.5,0.3981]
[1733556255388,0.17559,3980.7,3980.5,0.3981]
[1733556255894,0.379,3980.9,3980.5,0.3981]
[1733556256094,0.17559,3980.6,3980.5,0.3981]
[1733556257183,0.379,3980.9,3980.5,0.3981]
[1733556257385,0.17559,3980.7,3980.5,0.3981]
[1733556257991,0.17559,3980.7,3980.5,4.34033389]
[1733556258590,0.17559,3980.6,3980.5,0.3981]
[1733556258792,0.17559,3980.7,3980.5,0.3981]
[1733556259193,0.17559,3980.6,3980.5,0.3981]
[1733556262291,0.1756,3980.4,3980.3,3.2078]
[1733556262492,0.1756,3980.4,3980.3,3.6004]
[1733556263598,0.1756,3980.4,3980.3,4.0018]
[1733556264796,1.08182666,3980.4,3980.3,4.0018]
[1733556265794,0.90622666,3980.4,3980.3,4.0018]
[1733556265999,1.08182666,3980.4,3980.3,4.0018]
[1733556267096,1.08182666,3980.4,3980.3,3.2078]
[1733556267599,0.1756,3980.4,3980.3,3.2078]
[1733556267896,1.08182666,3980.4,3980.3,3.2078]
[1733556272799,0.17561,3980.3,3980.2,2.86e-06]
[1733556273605,0.55731,3980.3,3980.2,2.86e-06]
[1733556274503,0.95741,3980.3,3980.2,2.86e-06]
[1733556274907,0.94428684,3980.3,3980.2,2.86e-06]
[1733556282008,4.15208684,3980.3,3980.2,2.86e-06]
[1733556282406,4.38747488,3980.3,3980.2,2.86e-06]
[1733556285613,4.89360154,3980.3,3980.2,2.86e-06]
[1733556285811,4.6582135,3980.3,3980.2,2.86e-06]
[1733556287609,0.3817,3980.3,3980.2,2.86e-06]
[1733556287809,0.4007,3980.6,3980.2,2.86e-06]
[1733556287810,0.1756,3980.4,3980.2,2.86e-06]
[1733556288211,0.90622666,3980.5,3980.2,0.17561286]
[1733556288519,1.08182666,3980.5,3980.3,0.3777]
[1733556288717,1.08182666,3980.5,3980.4,0.4102]
[1733556293824,0.90622666,3980.5,3980.4,0.4102]
[1733556294023,0.1756,3980.5,3980.4,0.4102]
[1733556295526,1.08182666,3980.6,3980.4,0.4102]
[1733556295715,0.1756,3980.5,3980.4,0.4102]
[1733556296023,1.08182666,3980.5,3980.4,0.4102]
[1733556299525,3.2078,3980.7,3980.4,0.4102]
[1733556299726,3.38339,3980.7,3980.4,4.35243389]
[1733556300822,0.17559,3980.6,3980.4,4.35243389]
[1733556301418,4.28961666,3980.7,3980.4,0.4102]
[1733556301913,4.11402666,3980.7,3980.4,4.52803389]
[1733556302114,4.28961666,3980.7,3980.4,4.52803389]
[1733556302620,3.38339,3980.7,3980.4,5.25866055]
[1733556302820,3.2078,3981.6,3980.6,11.09425507]
[1733556303119,3.2078,3981.6,3981.1,4.11855634]
[1733556303120,0.17556,3981.4,3981.1,4.11855634]
[1733556303321,0.17556,3981.4,3981.2,4.72758634]
[1733556303514,0.3834,3981.5,3981.2,4.72758634]
[1733556303716,0.3834,3981.5,3981.3,0.17556]
[1733556303922,0.55896,3981.5,3981.2,4.72758634]
[1733556304215,0.3834,3981.5,3981.2,4.72758634]
[1733556304423,0.17556,3981.3,3981.2,4.72758634]
[1733556304723,0.3834,3981.5,3981.2,4.72758634]
[1733556304724,0.17556,3981.4,3981.2,4.72758634]
[1733556304923,0.55896,3981.5,3981.2,4.72758634]
[1733556305232,0.17556,3981.4,3981.2,0.7846]
[1733556305420,0.17556,3981.4,3981.2,4.72758634]
[1733556305729,0.3834,3981.5,3981.3,0.17556]
[1733556305929,0.3834,3981.5,3981.3,0.41]
[1733556306225,0.17554,3981.8,3981.4,4.11854634]
[1733556306421,0.17554,3981.8,3981.5,0.17555]
[1733556307125,0.90622666,3981.9,3981.5,0.17555]
[1733556307326,0.17554,3981.8,3981.5,0.17555]
[1733556307727,0.17554,3981.8,3981.4,3.94298634]
[1733556307921,0.17554,3981.8,3981.3,0.41]
[1733556307922,0.17554,3981.8,3981.5,0.17555]
[1733556308729,0.90622666,3981.9,3981.7,0.17554]
[1733556308931,3.38333,3982.2,3981.9,0.17553]
[1733556309122,0.17553,3982.1,3981.8,1.38954]
[1733556309425,3.2078,3982.2,3981.8,5.33252634]
[1733556309426,0.17553,3982.0,3981.8,5.33252634]
[1733556309622,3.2078,3982.2,3981.8,1.38954]
[1733556309926,3.2078,3982.2,3981.8,1.214]